[Event "*** Titled Tuesday Blitz"]
[Site "Chess.com"]
[Date "2020.01.07"]
[Round "3"]
[White "narutosmith"]
[Black "KRASAVCHIK2002"]
[Result "0-1"]
[WhiteElo "2254"]
[BlackElo "2462"]
[TimeControl "180+2"]
[EndTime "13:39:33 PST"]
[Termination "KRASAVCHIK2002 won by resignation"]

1. d4 {[%clk 0:03:01.9]} 1... Nf6 {[%clk 0:03:01.1]} 2. c4 {[%clk 0:03:03]} 2...
g6 {[%clk 0:03:01.6]} 3. Nc3 {[%clk 0:03:03.7]} 3... d5 {[%clk 0:03:03]} 4. e3
{[%clk 0:03:01.3]} 4... Bg7 {[%clk 0:03:03.5]} 5. Qb3 {[%clk 0:03:02.4]} 5...
dxc4 {[%clk 0:02:59.6]} 6. Bxc4 {[%clk 0:03:04.3]} 6... O-O {[%clk 0:03:01.5]}
7. Nf3 {[%clk 0:03:05]} 7... Nbd7 {[%clk 0:03:01.4]} 8. O-O {[%clk 0:02:58.1]}
8... Nb6 {[%clk 0:03:02.3]} 9. e4 {[%clk 0:02:23.7]} 9... Nxc4 {[%clk
0:03:00.4]} 10. Qxc4 {[%clk 0:02:24.1]} 10... c6 {[%clk 0:03:01.7]} 11. d5
{[%clk 0:02:14.5]} 11... cxd5 {[%clk 0:03:01.7]} 12. exd5 {[%clk 0:02:15.5]}
12... Ne8 {[%clk 0:03:03]} 13. Bf4 {[%clk 0:02:12.7]} 13... Nd6 {[%clk
0:03:03.8]} 14. Qe2 {[%clk 0:02:08]} 14... Bd7 {[%clk 0:02:34.1]} 15. Be5 {[%clk
0:02:00]} 15... Bh6 {[%clk 0:01:53.7]} 16. Rfe1 {[%clk 0:01:51.4]} 16... Re8
{[%clk 0:01:53.1]} 17. Rad1 {[%clk 0:01:48.4]} 17... Rc8 {[%clk 0:01:40.1]} 18.
b3 {[%clk 0:01:36]} 18... Qa5 {[%clk 0:01:28.8]} 19. Qd3 {[%clk 0:01:01.1]}
19... f6 {[%clk 0:01:18.8]} 20. Bxd6 {[%clk 0:00:10.8]} 20... Rxc3 {[%clk
0:01:08]} 21. Qd4 {[%clk 0:00:11.8]} 21... exd6 {[%clk 0:01:04.2]} 22. Rxe8+
{[%clk 0:00:12.8]} 22... Bxe8 {[%clk 0:01:04.9]} 23. Qxf6 {[%clk 0:00:14.5]}
23... Qxd5 {[%clk 0:00:50.5]} 24. Re1 {[%clk 0:00:09.2]} 24... Rc1 {[%clk
0:00:48.8]} 25. Rxc1 {[%clk 0:00:08.2]} 25... Bxc1 {[%clk 0:00:49.4]} 26. h4
{[%clk 0:00:07.6]} 26... Bh6 {[%clk 0:00:40.6]} 27. Qe7 {[%clk 0:00:06.7]} 27...
Qc6 {[%clk 0:00:27.3]} 28. Qd8 {[%clk 0:00:03.2]} 28... Qd7 {[%clk 0:00:26.9]}
29. Qf6 {[%clk 0:00:03.7]} 29... Bg7 {[%clk 0:00:27.4]} 30. Qf4 {[%clk
0:00:04.2]} 30... d5 {[%clk 0:00:24.2]} 31. Ng5 {[%clk 0:00:05.1]} 31... h6
{[%clk 0:00:24.3]} 32. Nf3 {[%clk 0:00:04.7]} 32... d4 {[%clk 0:00:23.9]} 33.
Qd2 {[%clk 0:00:04.4]} 33... Bf7 {[%clk 0:00:23.6]} 34. Qd3 {[%clk 0:00:05]}
34... a6 {[%clk 0:00:23.3]} 35. h5 {[%clk 0:00:05.4]} 35... g5 {[%clk
0:00:23.6]} 36. Nd2 {[%clk 0:00:05.5]} 36... Bxh5 {[%clk 0:00:22.6]} 37. Ne4
{[%clk 0:00:06.2]} 37... Bf7 {[%clk 0:00:21.2]} 38. f3 {[%clk 0:00:05.2]} 38...
Qc6 {[%clk 0:00:19.7]} 39. Nd2 {[%clk 0:00:03.8]} 39... Qc3 {[%clk 0:00:20.2]}
40. Qe2 {[%clk 0:00:03.8]} 40... d3 {[%clk 0:00:21.5]} 41. Qe1 {[%clk 0:00:04]}
41... Qc2 {[%clk 0:00:19.1]} 42. Kh1 {[%clk 0:00:05]} 42... Bc3 {[%clk 0:00:20]}
0-1

[Event "*** Titled Tuesday Blitz"]
[Site "Chess.com"]
[Date "2020.01.07"]
[Round "3"]
[White "el-reptiliano"]
[Black "Heineccius"]
[Result "0-1"]
[WhiteElo "2320"]
[BlackElo "2660"]
[TimeControl "180+2"]
[EndTime "13:39:34 PST"]
[Termination "Heineccius won by resignation"]

1. Nf3 {[%clk 0:02:56.4]} 1... Nf6 {[%clk 0:03:00.4]} 2. c4 {[%clk 0:02:56.6]}
2... e6 {[%clk 0:03:00.6]} 3. e3 {[%clk 0:02:55.8]} 3... d5 {[%clk 0:03:00.4]}
4. b3 {[%clk 0:02:56.6]} 4... Bd6 {[%clk 0:03:01]} 5. Bb2 {[%clk 0:02:57.5]}
5... O-O {[%clk 0:02:58.1]} 6. Nc3 {[%clk 0:02:56.2]} 6... Nbd7 {[%clk
0:02:57.7]} 7. cxd5 {[%clk 0:02:52.8]} 7... exd5 {[%clk 0:02:58]} 8. d4 {[%clk
0:02:40.2]} 8... c6 {[%clk 0:02:53.9]} 9. g3 {[%clk 0:02:38.2]} 9... Re8 {[%clk
0:02:54.1]} 10. Bg2 {[%clk 0:02:38.6]} 10... Qe7 {[%clk 0:02:48]} 11. O-O {[%clk
0:02:38.3]} 11... Nf8 {[%clk 0:02:40.6]} 12. Ne2 {[%clk 0:02:22.7]} 12... Ng6
{[%clk 0:02:36.7]} 13. Rc1 {[%clk 0:02:19.8]} 13... Bf5 {[%clk 0:02:27.4]} 14.
Re1 {[%clk 0:01:53.7]} 14... Qd7 {[%clk 0:02:12.1]} 15. Nf4 {[%clk 0:01:51.2]}
15... Be4 {[%clk 0:01:46.5]} 16. Nd3 {[%clk 0:01:40.5]} 16... Qe7 {[%clk
0:01:35.2]} 17. Bh3 {[%clk 0:01:20.6]} 17... Nd7 {[%clk 0:01:14.8]} 18. a3
{[%clk 0:00:52]} 18... a5 {[%clk 0:01:14.5]} 19. Nf4 {[%clk 0:00:34.6]} 19...
Qd8 {[%clk 0:00:42.9]} 20. Nxg6 {[%clk 0:00:31.6]} 20... Bxg6 {[%clk 0:00:41]}
21. Nh4 {[%clk 0:00:20.9]} 21... Be4 {[%clk 0:00:40.7]} 22. f3 {[%clk
0:00:20.4]} 22... Bg6 {[%clk 0:00:41.2]} 23. Nxg6 {[%clk 0:00:21.4]} 23... hxg6
{[%clk 0:00:42.1]} 24. Qd3 {[%clk 0:00:22.1]} 24... Nf6 {[%clk 0:00:40.7]} 25.
Bg2 {[%clk 0:00:23.5]} 25... Qb6 {[%clk 0:00:38.5]} 26. e4 {[%clk 0:00:23.1]}
26... dxe4 {[%clk 0:00:38.4]} 27. fxe4 {[%clk 0:00:25]} 27... Rad8 {[%clk
0:00:39.2]} 28. Qc4 {[%clk 0:00:21.1]} 28... Be5 {[%clk 0:00:39.2]} 29. Rcd1
{[%clk 0:00:22.1]} 29... a4 {[%clk 0:00:35.2]} 30. Kh1 {[%clk 0:00:22.4]} 30...
Ng4 {[%clk 0:00:31.9]} 31. Re2 {[%clk 0:00:15.1]} 31... Qxb3 {[%clk 0:00:29.2]}
32. Qxb3 {[%clk 0:00:15.6]} 32... axb3 {[%clk 0:00:30.5]} 33. h3 {[%clk
0:00:16.7]} 33... Nf6 {[%clk 0:00:31.1]} 34. Rd3 {[%clk 0:00:17.1]} 34... Nh5
{[%clk 0:00:30.4]} 35. Kh2 {[%clk 0:00:16.3]} 35... c5 {[%clk 0:00:31.2]} 36. d5
{[%clk 0:00:16.9]} 36... Bxb2 {[%clk 0:00:31.1]} 37. Rxb2 {[%clk 0:00:18.8]}
37... c4 {[%clk 0:00:32.6]} 38. Rc3 {[%clk 0:00:20.2]} 38... b5 {[%clk
0:00:33.5]} 39. a4 {[%clk 0:00:21.4]} 39... bxa4 {[%clk 0:00:34.5]} 40. Rxc4
{[%clk 0:00:22.7]} 40... Ra8 {[%clk 0:00:35.6]} 41. d6 {[%clk 0:00:23.1]} 41...
a3 {[%clk 0:00:36.7]} 42. Rxb3 {[%clk 0:00:24.4]} 42... a2 {[%clk 0:00:37.2]}
43. Rc1 {[%clk 0:00:25.4]} 43... a1=Q {[%clk 0:00:37.7]} 44. Rxa1 {[%clk
0:00:26.7]} 44... Rxa1 {[%clk 0:00:38.6]} 45. e5 {[%clk 0:00:27.7]} 45... Rd8
{[%clk 0:00:38.3]} 46. g4 {[%clk 0:00:28]} 46... Nf4 {[%clk 0:00:38.3]} 47. Bc6
{[%clk 0:00:25.5]} 47... Re1 {[%clk 0:00:36.4]} 48. Kg3 {[%clk 0:00:24.7]} 48...
Ne6 {[%clk 0:00:36.5]} 49. Rb5 {[%clk 0:00:21.9]} 49... Nd4 {[%clk 0:00:37.5]}
50. Rd5 {[%clk 0:00:22]} 50... Nxc6 {[%clk 0:00:38.7]} 0-1

[Event "*** Titled Tuesday Blitz"]
[Site "Chess.com"]
[Date "2020.01.07"]
[Round "3"]
[White "The_Chess_Coach"]
[Black "adriangschnitzer"]
[Result "0-1"]
[WhiteElo "2198"]
[BlackElo "2545"]
[TimeControl "180+2"]
[EndTime "13:39:38 PST"]
[Termination "adriangschnitzer won by resignation"]

1. d4 {[%clk 0:03:01.9]} 1... Nf6 {[%clk 0:02:58.8]} 2. c4 {[%clk 0:03:03.1]}
2... c5 {[%clk 0:02:59.8]} 3. d5 {[%clk 0:03:03.8]} 3... b5 {[%clk 0:03:00.5]}
4. Qc2 {[%clk 0:03:05.3]} 4... b4 {[%clk 0:03:00.8]} 5. b3 {[%clk 0:03:05.6]}
5... d6 {[%clk 0:03:00.7]} 6. Bb2 {[%clk 0:03:06.5]} 6... g6 {[%clk 0:03:00.6]}
7. e4 {[%clk 0:03:07.4]} 7... Bg7 {[%clk 0:03:01.4]} 8. Nd2 {[%clk 0:03:08.6]}
8... O-O {[%clk 0:03:01.9]} 9. Bd3 {[%clk 0:03:10]} 9... e5 {[%clk 0:03:02.8]}
10. Ne2 {[%clk 0:03:04.1]} 10... Nh5 {[%clk 0:02:58.8]} 11. O-O {[%clk
0:02:50.4]} 11... f5 {[%clk 0:02:57.2]} 12. a3 {[%clk 0:02:22]} 12... bxa3
{[%clk 0:02:43.1]} 13. Rxa3 {[%clk 0:02:23.9]} 13... f4 {[%clk 0:02:34.1]} 14.
Nc3 {[%clk 0:02:16.1]} 14... Na6 {[%clk 0:02:31.9]} 15. Rfa1 {[%clk 0:02:05.8]}
15... Nb4 {[%clk 0:02:32.5]} 16. Qb1 {[%clk 0:02:06.9]} 16... a6 {[%clk
0:02:23.9]} 17. Bf1 {[%clk 0:02:02.6]} 17... g5 {[%clk 0:02:14.8]} 18. Na2
{[%clk 0:02:03.2]} 18... g4 {[%clk 0:02:13.1]} 19. f3 {[%clk 0:01:45.1]} 19...
Qh4 {[%clk 0:02:05.3]} 20. Nxb4 {[%clk 0:01:35.8]} 20... cxb4 {[%clk 0:02:05.7]}
21. Ra4 {[%clk 0:01:36.5]} 21... Ng3 {[%clk 0:01:48.8]} 22. Qe1 {[%clk
0:01:24.4]} 22... Rf6 {[%clk 0:01:39]} 23. c5 {[%clk 0:01:10]} 23... Rh6 {[%clk
0:01:33.4]} 24. Kf2 {[%clk 0:00:45.6]} 24... Qxh2 {[%clk 0:01:11.6]} 25. Bxa6
{[%clk 0:00:44.4]} 25... Bf6 {[%clk 0:00:49]} 26. Qg1 {[%clk 0:00:33.1]} 26...
Qxg1+ {[%clk 0:00:22.4]} 27. Kxg1 {[%clk 0:00:18]} 27... Rh1+ {[%clk 0:00:22.2]}
28. Kf2 {[%clk 0:00:19.9]} 28... Rxa1 {[%clk 0:00:23.6]} 29. Bxa1 {[%clk
0:00:21.8]} 29... Rxa6 {[%clk 0:00:23.9]} 30. Rxb4 {[%clk 0:00:17.2]} 30... Rxa1
{[%clk 0:00:18]} 31. Rb8 {[%clk 0:00:17.7]} 31... dxc5 {[%clk 0:00:19.2]} 32.
Rxc8+ {[%clk 0:00:18.8]} 32... Kf7 {[%clk 0:00:20.7]} 33. Rc7+ {[%clk 0:00:17]}
33... Kg6 {[%clk 0:00:21.3]} 34. Rxc5 {[%clk 0:00:15]} 34... Bd8 {[%clk
0:00:20.8]} 35. fxg4 {[%clk 0:00:15.3]} 35... Bb6 {[%clk 0:00:20.7]} 36. b4
{[%clk 0:00:14.1]} 36... Kg5 {[%clk 0:00:19.4]} 37. Nf3+ {[%clk 0:00:12]} 37...
Kf6 {[%clk 0:00:12.4]} 38. Nd2 {[%clk 0:00:07.8]} 38... Bxc5+ {[%clk 0:00:12.7]}
39. bxc5 {[%clk 0:00:08.7]} 39... Ra2 {[%clk 0:00:13.9]} 40. Ke1 {[%clk
0:00:09]} 40... Rxd2 {[%clk 0:00:13.9]} 41. c6 {[%clk 0:00:10.9]} 41... Nxe4
{[%clk 0:00:15.2]} 42. d6 {[%clk 0:00:08.4]} 42... Rxd6 {[%clk 0:00:15.5]} 43.
c7 {[%clk 0:00:09.1]} 43... Rc6 {[%clk 0:00:16.4]} 44. Ke2 {[%clk 0:00:11]}
44... Rxc7 {[%clk 0:00:17.4]} 45. Kf3 {[%clk 0:00:12.9]} 45... Ng5+ {[%clk
0:00:17.6]} 0-1

[Event "*** Titled Tuesday Blitz"]
[Site "Chess.com"]
[Date "2020.01.07"]
[Round "3"]
[White "GMHess"]
[Black "RitvarsReimanis"]
[Result "1-0"]
[WhiteElo "2752"]
[BlackElo "2572"]
[TimeControl "180+2"]
[EndTime "13:39:41 PST"]
[Termination "GMHess won on time"]

1. a3 {[%clk 0:03:01.9]} 1... a5 {[%clk 0:02:58]} 2. h3 {[%clk 0:03:01.3]} 2...
b6 {[%clk 0:02:58.4]} 3. e4 {[%clk 0:02:59.2]} 3... Bb7 {[%clk 0:02:57]} 4. Nc3
{[%clk 0:03:00.6]} 4... e6 {[%clk 0:02:43.9]} 5. d4 {[%clk 0:03:01.4]} 5... d6
{[%clk 0:02:40.1]} 6. Nf3 {[%clk 0:03:01.1]} 6... Nd7 {[%clk 0:02:41.5]} 7. d5
{[%clk 0:02:58.9]} 7... e5 {[%clk 0:02:35.4]} 8. Bb5 {[%clk 0:02:59.6]} 8... Nf6
{[%clk 0:02:35.1]} 9. g4 {[%clk 0:02:50.6]} 9... h6 {[%clk 0:02:33.8]} 10. Be3
{[%clk 0:02:41.9]} 10... Qc8 {[%clk 0:02:32.5]} 11. g5 {[%clk 0:02:23.7]} 11...
hxg5 {[%clk 0:02:20.5]} 12. Nxg5 {[%clk 0:02:25.6]} 12... Be7 {[%clk 0:02:14.8]}
13. Rg1 {[%clk 0:02:00.2]} 13... Ba6 {[%clk 0:02:11.1]} 14. Bc6 {[%clk
0:01:30.7]} 14... Bb7 {[%clk 0:02:08.6]} 15. Bxb7 {[%clk 0:01:26.3]} 15... Qxb7
{[%clk 0:02:09.2]} 16. Qd3 {[%clk 0:01:23.9]} 16... c6 {[%clk 0:01:41.2]} 17.
dxc6 {[%clk 0:01:21.6]} 17... Qxc6 {[%clk 0:01:43.1]} 18. O-O-O {[%clk
0:01:21.5]} 18... Rb8 {[%clk 0:01:35.1]} 19. Nd5 {[%clk 0:01:07.8]} 19... Nxd5
{[%clk 0:01:35.7]} 20. exd5 {[%clk 0:01:09.7]} 20... Qc7 {[%clk 0:01:25.7]} 21.
Nxf7 {[%clk 0:01:09]} 21... Rf8 {[%clk 0:01:16.7]} 22. Ng5 {[%clk 0:00:43.5]}
22... Bxg5 {[%clk 0:01:06.3]} 23. Rxg5 {[%clk 0:00:45.4]} 23... Nf6 {[%clk
0:00:59]} 24. Rdg1 {[%clk 0:00:37.2]} 24... Rf7 {[%clk 0:00:58.9]} 25. f4 {[%clk
0:00:27.9]} 25... e4 {[%clk 0:00:59.3]} 26. Qb5+ {[%clk 0:00:28.6]} 26... Kf8
{[%clk 0:00:59.1]} 27. Qc6 {[%clk 0:00:25.8]} 27... Rc8 {[%clk 0:00:37.1]} 28.
Qxc7 {[%clk 0:00:25.1]} 28... Rfxc7 {[%clk 0:00:39]} 29. c3 {[%clk 0:00:22.1]}
29... Rb8 {[%clk 0:00:33.4]} 30. Bd4 {[%clk 0:00:17.1]} 30... Ne8 {[%clk
0:00:34.7]} 31. Re1 {[%clk 0:00:14.4]} 31... Re7 {[%clk 0:00:35.5]} 32. h4
{[%clk 0:00:12.7]} 32... b5 {[%clk 0:00:36.9]} 33. b4 {[%clk 0:00:12.9]} 33...
axb4 {[%clk 0:00:37.8]} 34. axb4 {[%clk 0:00:12.8]} 34... Ra8 {[%clk 0:00:36.7]}
35. Kb2 {[%clk 0:00:13.8]} 35... Kf7 {[%clk 0:00:36.2]} 36. h5 {[%clk
0:00:13.4]} 36... Nf6 {[%clk 0:00:31.7]} 37. h6 {[%clk 0:00:11.6]} 37... g6
{[%clk 0:00:29.2]} 38. f5 {[%clk 0:00:12.9]} 38... Rg8 {[%clk 0:00:24.9]} 39.
fxg6+ {[%clk 0:00:11.1]} 39... Rxg6 {[%clk 0:00:26.8]} 40. Rxg6 {[%clk 0:00:13]}
40... Kxg6 {[%clk 0:00:28]} 41. Rg1+ {[%clk 0:00:14.7]} 1-0

[Event "*** Titled Tuesday Blitz"]
[Site "Chess.com"]
[Date "2020.01.07"]
[Round "3"]
[White "Hrant_ChessMood"]
[Black "nurgyulsalimova"]
[Result "1-0"]
[WhiteElo "2925"]
[BlackElo "2606"]
[TimeControl "180+2"]
[EndTime "13:39:43 PST"]
[Termination "Hrant_ChessMood won by resignation"]

1. e4 {[%clk 0:03:01.9]} 1... e5 {[%clk 0:03:00.4]} 2. Nf3 {[%clk 0:03:01.9]}
2... Nc6 {[%clk 0:03:01]} 3. Bc4 {[%clk 0:03:03.2]} 3... Nf6 {[%clk 0:03:01.7]}
4. Ng5 {[%clk 0:03:03.4]} 4... d5 {[%clk 0:02:59.3]} 5. exd5 {[%clk 0:03:04.5]}
5... Na5 {[%clk 0:02:38.5]} 6. Bb5+ {[%clk 0:03:05]} 6... c6 {[%clk 0:02:39.1]}
7. dxc6 {[%clk 0:03:06.4]} 7... bxc6 {[%clk 0:02:39.7]} 8. Bd3 {[%clk
0:03:07.9]} 8... Nd5 {[%clk 0:02:39.1]} 9. Nf3 {[%clk 0:03:05.7]} 9... Bd6
{[%clk 0:02:36.4]} 10. O-O {[%clk 0:03:02.7]} 10... O-O {[%clk 0:02:35.6]} 11.
Re1 {[%clk 0:03:03.5]} 11... Re8 {[%clk 0:02:30.9]} 12. Nc3 {[%clk 0:02:53.6]}
12... f5 {[%clk 0:02:27.6]} 13. Bf1 {[%clk 0:02:32.8]} 13... e4 {[%clk 0:02:25]}
14. Nd4 {[%clk 0:02:33.8]} 14... Qf6 {[%clk 0:02:23.8]} 15. Nxd5 {[%clk
0:02:26.1]} 15... cxd5 {[%clk 0:02:11]} 16. c3 {[%clk 0:02:20.1]} 16... Bd7
{[%clk 0:02:09.9]} 17. d3 {[%clk 0:02:19.9]} 17... Nc6 {[%clk 0:02:07.8]} 18.
dxe4 {[%clk 0:02:18.6]} 18... Nxd4 {[%clk 0:01:58.9]} 19. Qxd4 {[%clk
0:02:18.4]} 19... Qxd4 {[%clk 0:01:57.2]} 20. cxd4 {[%clk 0:02:14.3]} 20... fxe4
{[%clk 0:01:56.6]} 21. Be3 {[%clk 0:02:11.1]} 21... a5 {[%clk 0:01:51.8]} 22.
Rec1 {[%clk 0:02:03.5]} 22... a4 {[%clk 0:01:42.6]} 23. Rc2 {[%clk 0:02:04.3]}
23... Reb8 {[%clk 0:01:38.3]} 24. Be2 {[%clk 0:01:47]} 24... Rb6 {[%clk
0:01:27.6]} 25. Rd1 {[%clk 0:01:44.3]} 25... Rab8 {[%clk 0:01:23.4]} 26. Bc1
{[%clk 0:01:45.1]} 26... Kf7 {[%clk 0:01:06.6]} 27. f3 {[%clk 0:01:41.4]} 27...
Bf5 {[%clk 0:01:04.5]} 28. fxe4 {[%clk 0:01:39.2]} 28... Bxe4 {[%clk 0:01:03.8]}
29. Bd3 {[%clk 0:01:40.3]} 29... Bxd3 {[%clk 0:00:59.8]} 30. Rxd3 {[%clk
0:01:42.2]} 30... Rb4 {[%clk 0:01:01.3]} 31. h3 {[%clk 0:01:34]} 31... Be7
{[%clk 0:00:45.3]} 32. Rc7 {[%clk 0:01:22.4]} 32... R4b7 {[%clk 0:00:24.3]} 33.
Rf3+ {[%clk 0:01:17.8]} 33... Kg8 {[%clk 0:00:20.7]} 34. Rc2 {[%clk 0:01:16.1]}
34... Bf6 {[%clk 0:00:21.4]} 35. Rd3 {[%clk 0:01:02.7]} 35... Rb4 {[%clk
0:00:22]} 36. Rcd2 {[%clk 0:00:57.6]} 36... Bg5 {[%clk 0:00:22.6]} 37. Rd1
{[%clk 0:00:58.6]} 37... Bxc1 {[%clk 0:00:23.6]} 38. Rxc1 {[%clk 0:01:00.5]}
38... Rxb2 {[%clk 0:00:25.5]} 39. Rc7 {[%clk 0:00:52.6]} 39... Rxa2 {[%clk
0:00:23.2]} 40. Re3 {[%clk 0:00:53.9]} 40... a3 {[%clk 0:00:11.9]} 41. Ree7
{[%clk 0:00:54.6]} 41... Ra1+ {[%clk 0:00:09.4]} 42. Kh2 {[%clk 0:00:55.2]}
42... a2 {[%clk 0:00:11.3]} 43. Rxg7+ {[%clk 0:00:56.6]} 43... Kf8 {[%clk
0:00:12]} 44. Rcf7+ {[%clk 0:00:56.1]} 44... Ke8 {[%clk 0:00:13]} 45. Ra7 {[%clk
0:00:58]} 45... Kf8 {[%clk 0:00:09.4]} 46. Rxh7 {[%clk 0:00:59.2]} 46... Kg8
{[%clk 0:00:10.3]} 47. Rh5 {[%clk 0:00:56.2]} 47... Rb2 {[%clk 0:00:05.6]} 48.
Rxd5 {[%clk 0:00:54.8]} 48... Rf1 {[%clk 0:00:06.3]} 49. Rd8+ {[%clk 0:00:51.8]}
49... Rf8 {[%clk 0:00:07.1]} 50. Rxf8+ {[%clk 0:00:52.7]} 50... Kxf8 {[%clk
0:00:09]} 51. h4 {[%clk 0:00:54.6]} 1-0

[Event "*** Titled Tuesday Blitz"]
[Site "Chess.com"]
[Date "2020.01.07"]
[Round "3"]
[White "Zq1"]
[Black "mersad_98"]
[Result "0-1"]
[WhiteElo "2522"]
[BlackElo "2753"]
[TimeControl "180+2"]
[EndTime "13:39:43 PST"]
[Termination "mersad_98 won by resignation"]

1. d4 {[%clk 0:03:01.9]} 1... d5 {[%clk 0:03:01.2]} 2. c4 {[%clk 0:03:02.3]}
2... dxc4 {[%clk 0:03:03.1]} 3. e3 {[%clk 0:02:59.5]} 3... e5 {[%clk 0:03:03.5]}
4. Bxc4 {[%clk 0:03:00.3]} 4... exd4 {[%clk 0:03:05.2]} 5. exd4 {[%clk
0:03:01.4]} 5... Nf6 {[%clk 0:03:07]} 6. Nf3 {[%clk 0:03:02.6]} 6... Bd6 {[%clk
0:03:08.5]} 7. O-O {[%clk 0:03:03.4]} 7... O-O {[%clk 0:03:10.1]} 8. h3 {[%clk
0:03:04.4]} 8... Nc6 {[%clk 0:03:09.4]} 9. Nc3 {[%clk 0:03:05.3]} 9... h6 {[%clk
0:03:09.7]} 10. Re1 {[%clk 0:03:05.3]} 10... Bf5 {[%clk 0:03:07.5]} 11. a3
{[%clk 0:03:05.3]} 11... Qd7 {[%clk 0:03:00.1]} 12. Be3 {[%clk 0:02:58.9]} 12...
a6 {[%clk 0:02:55.3]} 13. d5 {[%clk 0:02:53.1]} 13... Ne5 {[%clk 0:02:41.3]} 14.
Nxe5 {[%clk 0:02:48.9]} 14... Bxe5 {[%clk 0:02:43.2]} 15. Bd4 {[%clk 0:02:40.7]}
15... Bxd4 {[%clk 0:02:41.4]} 16. Qxd4 {[%clk 0:02:41.5]} 16... Rfe8 {[%clk
0:02:33.2]} 17. Rad1 {[%clk 0:02:36.9]} 17... Qd6 {[%clk 0:02:32.2]} 18. f4
{[%clk 0:02:28.6]} 18... Nd7 {[%clk 0:02:22.8]} 19. b4 {[%clk 0:02:13.1]} 19...
Kf8 {[%clk 0:02:15.5]} 20. Kf2 {[%clk 0:02:08.7]} 20... Qb6 {[%clk 0:01:49.9]}
21. Qxb6 {[%clk 0:02:06.9]} 21... Nxb6 {[%clk 0:01:51.8]} 22. Bb3 {[%clk
0:02:03.2]} 22... Rxe1 {[%clk 0:01:51.4]} 23. Rxe1 {[%clk 0:02:01.4]} 23... Nc8
{[%clk 0:01:50.6]} 24. g4 {[%clk 0:01:59.4]} 24... Bd7 {[%clk 0:01:45.1]} 25.
Ne4 {[%clk 0:01:54.1]} 25... b6 {[%clk 0:01:33.5]} 26. Rc1 {[%clk 0:01:51.2]}
26... Ra7 {[%clk 0:01:34.8]} 27. a4 {[%clk 0:01:24.5]} 27... Nd6 {[%clk
0:01:28.5]} 28. Ke3 {[%clk 0:01:20.1]} 28... Nxe4 {[%clk 0:01:24]} 29. Kxe4
{[%clk 0:01:21]} 29... Ke7 {[%clk 0:01:25.9]} 30. a5 {[%clk 0:01:11.2]} 30...
Kd6 {[%clk 0:01:19.3]} 31. Kd4 {[%clk 0:01:06.6]} 31... Rb7 {[%clk 0:01:08.7]}
32. axb6 {[%clk 0:00:45.5]} 32... cxb6 {[%clk 0:00:33.2]} 33. Ra1 {[%clk
0:00:37.8]} 33... Ra7 {[%clk 0:00:34.4]} 34. Bc4 {[%clk 0:00:22.5]} 34... a5
{[%clk 0:00:35.8]} 35. bxa5 {[%clk 0:00:20.8]} 35... Rxa5 {[%clk 0:00:36.9]} 36.
Rb1 {[%clk 0:00:22]} 36... b5 {[%clk 0:00:38.2]} 37. Bb3 {[%clk 0:00:20.6]}
37... Ra3 {[%clk 0:00:39.2]} 38. Rb2 {[%clk 0:00:19]} 38... Ra1 {[%clk
0:00:38.7]} 39. Ra2 {[%clk 0:00:15.1]} 39... Rxa2 {[%clk 0:00:29.7]} 40. Bxa2
{[%clk 0:00:16.1]} 40... h5 {[%clk 0:00:31.6]} 41. f5 {[%clk 0:00:12.6]} 41...
h4 {[%clk 0:00:30.4]} 42. Bb3 {[%clk 0:00:12.3]} 42... Bc8 {[%clk 0:00:30.8]}
43. Ba2 {[%clk 0:00:12.3]} 43... f6 {[%clk 0:00:26.9]} 44. Bb3 {[%clk
0:00:12.1]} 44... Ba6 {[%clk 0:00:28.2]} 45. Bd1 {[%clk 0:00:06.8]} 45... b4
{[%clk 0:00:28.9]} 46. Bb3 {[%clk 0:00:04.4]} 46... Bf1 {[%clk 0:00:26.9]} 0-1

[Event "*** Titled Tuesday Blitz"]
[Site "Chess.com"]
[Date "2020.01.07"]
[Round "3"]
[White "W_Amadeus"]
[Black "ChessyInstinct"]
[Result "0-1"]
[WhiteElo "2673"]
[BlackElo "2457"]
[TimeControl "180+2"]
[EndTime "13:39:43 PST"]
[Termination "ChessyInstinct won by resignation"]

1. e4 {[%clk 0:03:01.9]} 1... e5 {[%clk 0:03:01.3]} 2. Nf3 {[%clk 0:03:02.5]}
2... Nc6 {[%clk 0:03:02.8]} 3. Bc4 {[%clk 0:03:03.6]} 3... Bc5 {[%clk
0:03:03.2]} 4. O-O {[%clk 0:03:03.9]} 4... Nf6 {[%clk 0:03:04]} 5. d3 {[%clk
0:03:05.5]} 5... O-O {[%clk 0:03:04.6]} 6. c3 {[%clk 0:03:06.9]} 6... d5 {[%clk
0:03:05.6]} 7. exd5 {[%clk 0:03:08.8]} 7... Nxd5 {[%clk 0:03:06.8]} 8. Re1
{[%clk 0:03:10.4]} 8... Bg4 {[%clk 0:03:06.9]} 9. h3 {[%clk 0:03:11.4]} 9... Bh5
{[%clk 0:03:07.6]} 10. Nbd2 {[%clk 0:03:13]} 10... f6 {[%clk 0:02:51.3]} 11. b4
{[%clk 0:01:23.3]} 11... Bb6 {[%clk 0:02:39.2]} 12. a4 {[%clk 0:01:24.3]} 12...
a6 {[%clk 0:02:21]} 13. Ba3 {[%clk 0:01:10.9]} 13... Re8 {[%clk 0:01:40.3]} 14.
Qb3 {[%clk 0:01:10.5]} 14... Bf7 {[%clk 0:01:38.1]} 15. d4 {[%clk 0:00:54.7]}
15... Qd7 {[%clk 0:01:20.8]} 16. dxe5 {[%clk 0:00:47.6]} 16... Nxe5 {[%clk
0:01:10.1]} 17. Nxe5 {[%clk 0:00:46.9]} 17... fxe5 {[%clk 0:00:58.6]} 18. Nf3
{[%clk 0:00:42.3]} 18... e4 {[%clk 0:00:37.1]} 19. Ng5 {[%clk 0:00:40.9]} 19...
Bxf2+ {[%clk 0:00:37]} 20. Kxf2 {[%clk 0:00:34.6]} 20... Qf5+ {[%clk 0:00:37.9]}
21. Kg1 {[%clk 0:00:13.3]} 21... Qxg5 {[%clk 0:00:39]} 22. Rad1 {[%clk
0:00:14.4]} 22... c6 {[%clk 0:00:36]} 23. Bc1 {[%clk 0:00:14.2]} 23... Qg6
{[%clk 0:00:31.8]} 24. a5 {[%clk 0:00:11.7]} 24... Nf6 {[%clk 0:00:25.9]} 25.
Be3 {[%clk 0:00:05.7]} 25... Bxc4 {[%clk 0:00:21.2]} 26. Qxc4+ {[%clk
0:00:07.6]} 26... Qf7 {[%clk 0:00:21.3]} 27. Qc5 {[%clk 0:00:04.8]} 27... Rad8
{[%clk 0:00:18.4]} 28. Rxd8 {[%clk 0:00:02.9]} 28... Rxd8 {[%clk 0:00:20.3]} 29.
Bd4 {[%clk 0:00:04.5]} 29... Re8 {[%clk 0:00:18.4]} 30. Qd6 {[%clk 0:00:04.1]}
30... Qe6 {[%clk 0:00:14.1]} 31. Qg3 {[%clk 0:00:04.9]} 31... h6 {[%clk
0:00:08.7]} 32. Kh1 {[%clk 0:00:06]} 32... Re7 {[%clk 0:00:07.6]} 33. Kg1 {[%clk
0:00:06.6]} 33... Nh5 {[%clk 0:00:07.3]} 34. Qh4 {[%clk 0:00:06.8]} 34... Nf6
{[%clk 0:00:06.6]} 35. Kh1 {[%clk 0:00:07.6]} 35... Nd5 {[%clk 0:00:07.3]} 36.
Qg3 {[%clk 0:00:07.7]} 36... Kh7 {[%clk 0:00:07.4]} 37. Kh2 {[%clk 0:00:08.1]}
37... Qg6 {[%clk 0:00:08.1]} 38. Qb8 {[%clk 0:00:05]} 38... Qg5 {[%clk
0:00:05.9]} 39. Rf1 {[%clk 0:00:05.4]} 39... e3 {[%clk 0:00:03.8]} 40. Rf8
{[%clk 0:00:04.8]} 40... e2 {[%clk 0:00:04.1]} 41. Rh8+ {[%clk 0:00:05.5]} 41...
Kg6 {[%clk 0:00:05.4]} 42. Bxg7 {[%clk 0:00:06.1]} 42... Qf4+ {[%clk 0:00:03.7]}
43. Qxf4 {[%clk 0:00:06.4]} 43... Nxf4 {[%clk 0:00:05.6]} 0-1